[Event "Early-Titled-Tuesday-Blitz-September-05-2023"]
[Site "Chess.com"]
[Date "2023.09.05"]
[Round "6"]
[White "esrosenberg"]
[Black "ErikRonka"]
[Result "0-1"]
[WhiteElo "2389"]
[BlackElo "2496"]
[TimeControl "180+1"]
[EndTime "9:05:46 PDT"]
[Termination "ErikRonka won by resignation"]

1. d4 {[%clk 0:02:59.6]} 1... d5 {[%clk 0:02:58.7]} 2. Nf3 {[%clk 0:02:59.1]}
2... Nf6 {[%clk 0:02:58.1]} 3. Bg5 {[%clk 0:02:56.2]} 3... Ne4 {[%clk
0:02:56.9]} 4. Bh4 {[%clk 0:02:56.4]} 4... f6 {[%clk 0:02:54.2]} 5. Nfd2 {[%clk
0:02:46.5]} 5... Bf5 {[%clk 0:02:30]} 6. Nc3 {[%clk 0:02:33.5]} 6... Nxc3 {[%clk
0:02:25.3]} 7. bxc3 {[%clk 0:02:33.5]} 7... c6 {[%clk 0:01:54.5]} 8. f3 {[%clk
0:02:33.5]} 8... Nd7 {[%clk 0:01:39.2]} 9. e4 {[%clk 0:02:33.3]} 9... Bg6 {[%clk
0:01:38.7]} 10. c4 {[%clk 0:02:26.2]} 10... e6 {[%clk 0:01:32.8]} 11. Bd3 {[%clk
0:02:11.9]} 11... Be7 {[%clk 0:01:29.3]} 12. O-O {[%clk 0:02:10.8]} 12... O-O
{[%clk 0:01:28.4]} 13. Re1 {[%clk 0:02:10.5]} 13... Bf7 {[%clk 0:01:26.3]} 14.
Rb1 {[%clk 0:02:09.2]} 14... b6 {[%clk 0:01:26]} 15. a4 {[%clk 0:02:07.7]} 15...
Qc7 {[%clk 0:01:12.9]} 16. exd5 {[%clk 0:02:03.4]} 16... cxd5 {[%clk 0:01:07.2]}
17. cxd5 {[%clk 0:02:03.5]} 17... e5 {[%clk 0:00:55.8]} 18. dxe5 {[%clk
0:01:58]} 18... Nxe5 {[%clk 0:00:56.7]} 19. Be4 {[%clk 0:01:38]} 19... Rad8
{[%clk 0:00:54.8]} 20. f4 {[%clk 0:01:18.3]} 20... Ng6 {[%clk 0:00:50.1]} 21.
Bg3 {[%clk 0:01:05.5]} 21... Nxf4 {[%clk 0:00:49.8]} 22. Qf3 {[%clk 0:00:22.9]}
22... Bd6 {[%clk 0:00:48]} 23. Rf1 {[%clk 0:00:18.2]} 23... Ng6 {[%clk 0:00:42]}
24. Bxd6 {[%clk 0:00:16.5]} 24... Qxd6 {[%clk 0:00:42.9]} 25. c4 {[%clk
0:00:17]} 25... Rfe8 {[%clk 0:00:33.3]} 26. g3 {[%clk 0:00:17.5]} 26... Qd7
{[%clk 0:00:21.1]} 27. a5 {[%clk 0:00:17.2]} 27... bxa5 {[%clk 0:00:20]} 28. Nb3
{[%clk 0:00:14.3]} 28... a4 {[%clk 0:00:19.1]} 29. Nc5 {[%clk 0:00:14.3]} 29...
Qc7 {[%clk 0:00:17.2]} 30. Nxa4 {[%clk 0:00:13.1]} 30... Qxc4 {[%clk 0:00:16.4]}
31. Nb2 {[%clk 0:00:09.9]} 31... Qxe4 {[%clk 0:00:15.7]} 0-1

[Event "Early-Titled-Tuesday-Blitz-September-05-2023"]
[Site "Chess.com"]
[Date "2023.09.05"]
[Round "6"]
[White "nss13"]
[Black "Andrei_Skvortsov"]
[Result "0-1"]
[WhiteElo "2498"]
[BlackElo "2641"]
[TimeControl "180+1"]
[EndTime "9:05:51 PDT"]
[Termination "Andrei_Skvortsov won by resignation"]

1. e4 {[%clk 0:02:58]} 1... d5 {[%clk 0:02:58.6]} 2. exd5 {[%clk 0:02:58]} 2...
Qxd5 {[%clk 0:02:59.5]} 3. Nc3 {[%clk 0:02:58.3]} 3... Qe5+ {[%clk 0:02:59.6]}
4. Be2 {[%clk 0:02:53.4]} 4... Bg4 {[%clk 0:02:50.4]} 5. d4 {[%clk 0:02:49.5]}
5... Bxe2 {[%clk 0:02:48.9]} 6. Ncxe2 {[%clk 0:02:42.3]} 6... Qb5 {[%clk
0:02:45.3]} 7. Nf3 {[%clk 0:02:40]} 7... Nf6 {[%clk 0:02:45]} 8. c3 {[%clk
0:02:40.2]} 8... e6 {[%clk 0:02:44.9]} 9. Qb3 {[%clk 0:02:39.7]} 9... a6 {[%clk
0:02:42.9]} 10. Bf4 {[%clk 0:02:08.7]} 10... Nd5 {[%clk 0:02:32.1]} 11. Bg3
{[%clk 0:01:50.5]} 11... Nc6 {[%clk 0:02:26]} 12. c4 {[%clk 0:01:45.4]} 12...
Qxb3 {[%clk 0:02:24.6]} 13. axb3 {[%clk 0:01:46.3]} 13... Ndb4 {[%clk
0:02:24.3]} 14. O-O {[%clk 0:01:43.2]} 14... O-O-O {[%clk 0:02:22.9]} 15. Rfd1
{[%clk 0:01:34.6]} 15... f6 {[%clk 0:02:17.9]} 16. Ne1 {[%clk 0:01:26.2]} 16...
Ne7 {[%clk 0:02:10.9]} 17. Nd3 {[%clk 0:01:17.2]} 17... Nc2 {[%clk 0:02:02.5]}
18. Rac1 {[%clk 0:01:14.5]} 18... Nxd4 {[%clk 0:02:01.8]} 19. Nxd4 {[%clk
0:01:15.4]} 19... Rxd4 {[%clk 0:02:02]} 20. Nc5 {[%clk 0:01:06.6]} 20... Rxd1+
{[%clk 0:01:56.9]} 21. Rxd1 {[%clk 0:01:07.5]} 21... e5 {[%clk 0:01:54.4]} 22.
Ne6 {[%clk 0:01:01.1]} 22... Nc6 {[%clk 0:01:51.3]} 23. f4 {[%clk 0:01:00.8]}
23... Rg8 {[%clk 0:01:43]} 24. fxe5 {[%clk 0:01:00]} 24... fxe5 {[%clk
0:01:43.3]} 25. Bxe5 {[%clk 0:00:52.9]} 25... Bc5+ {[%clk 0:01:40.6]} 26. Nxc5
{[%clk 0:00:50.2]} 26... Nxe5 {[%clk 0:01:40.4]} 27. Re1 {[%clk 0:00:47.7]}
27... Nd7 {[%clk 0:01:37.9]} 28. Ne4 {[%clk 0:00:23.9]} 28... Kd8 {[%clk
0:01:34.1]} 29. Ng5 {[%clk 0:00:22.9]} 29... Nf6 {[%clk 0:01:31.7]} 30. h3
{[%clk 0:00:16.2]} 30... Re8 {[%clk 0:01:24.7]} 31. Rxe8+ {[%clk 0:00:15.6]}
31... Kxe8 {[%clk 0:01:16.8]} 32. Ne6 {[%clk 0:00:15.5]} 32... Ne4 {[%clk
0:01:16.2]} 33. Nxc7+ {[%clk 0:00:13.6]} 33... Kd7 {[%clk 0:01:15.6]} 34. Nd5
{[%clk 0:00:11.8]} 34... Nd2 {[%clk 0:01:15.9]} 35. Kf2 {[%clk 0:00:11.7]} 35...
Nxb3 {[%clk 0:01:15.5]} 36. Ke3 {[%clk 0:00:12.3]} 36... Kd6 {[%clk 0:01:15.6]}
37. Kd3 {[%clk 0:00:08.5]} 37... Ke5 {[%clk 0:01:14.2]} 38. Kc3 {[%clk
0:00:07.9]} 38... Nc5 {[%clk 0:01:14.5]} 39. Nb6 {[%clk 0:00:08.4]} 39... Ne4+
{[%clk 0:01:13.1]} 40. Kd3 {[%clk 0:00:08.9]} 40... Nf6 {[%clk 0:01:09.2]} 41.
b4 {[%clk 0:00:08.2]} 41... g5 {[%clk 0:01:07.5]} 42. c5 {[%clk 0:00:06.3]}
42... h6 {[%clk 0:01:03.8]} 43. Nc4+ {[%clk 0:00:06]} 43... Kd5 {[%clk
0:01:03.1]} 44. Nd6 {[%clk 0:00:06.9]} 44... b6 {[%clk 0:01:01.3]} 45. Nf5
{[%clk 0:00:05.2]} 45... bxc5 {[%clk 0:01:01.6]} 46. bxc5 {[%clk 0:00:06.1]}
46... h5 {[%clk 0:01:01.4]} 47. Ne3+ {[%clk 0:00:01.4]} 47... Kxc5 {[%clk
0:01:01.3]} 48. g3 {[%clk 0:00:01.9]} 48... a5 {[%clk 0:01:01.3]} 49. h4 {[%clk
0:00:02.8]} 49... g4 {[%clk 0:01:00.7]} 50. Ng2 {[%clk 0:00:02.8]} 50... Nd5
{[%clk 0:01:00.5]} 51. Nf4 {[%clk 0:00:03.7]} 51... Nxf4+ {[%clk 0:01:00.1]} 52.
gxf4 {[%clk 0:00:04.6]} 52... Kd5 {[%clk 0:01:00.7]} 0-1

[Event "Early-Titled-Tuesday-Blitz-September-05-2023"]
[Site "Chess.com"]
[Date "2023.09.05"]
[Round "6"]
[White "Druid24"]
[Black "DeArron_Fox"]
[Result "1-0"]
[WhiteElo "2660"]
[BlackElo "2518"]
[TimeControl "180+1"]
[EndTime "9:05:55 PDT"]
[Termination "Druid24 won by resignation"]

1. e4 {[%clk 0:02:59.7]} 1... c5 {[%clk 0:02:57.6]} 2. Nc3 {[%clk 0:02:59.9]}
2... e6 {[%clk 0:02:58.1]} 3. Nf3 {[%clk 0:02:59.2]} 3... a6 {[%clk 0:02:57.5]}
4. d4 {[%clk 0:02:58.5]} 4... cxd4 {[%clk 0:02:58.4]} 5. Nxd4 {[%clk 0:02:58.6]}
5... b5 {[%clk 0:02:58.9]} 6. g3 {[%clk 0:02:56.4]} 6... Bb7 {[%clk 0:02:57.6]}
7. Bg2 {[%clk 0:02:56.5]} 7... Nf6 {[%clk 0:02:58.3]} 8. a3 {[%clk 0:02:56]}
8... Qc7 {[%clk 0:02:53.8]} 9. O-O {[%clk 0:02:55.4]} 9... Nc6 {[%clk
0:02:52.2]} 10. Nxc6 {[%clk 0:02:54.2]} 10... Bxc6 {[%clk 0:02:51.3]} 11. Re1
{[%clk 0:02:54.9]} 11... Bc5 {[%clk 0:02:34.8]} 12. Nd5 {[%clk 0:02:53.5]} 12...
Bxd5 {[%clk 0:02:19.6]} 13. exd5 {[%clk 0:02:54.2]} 13... Rc8 {[%clk 0:01:48.3]}
14. Bf4 {[%clk 0:02:51.2]} 14... Qa7 {[%clk 0:01:41.9]} 15. Re2 {[%clk
0:02:48.1]} 15... O-O {[%clk 0:01:35.7]} 16. Qd3 {[%clk 0:02:39.5]} 16... Rfe8
{[%clk 0:00:56.8]} 17. dxe6 {[%clk 0:02:31.5]} 17... dxe6 {[%clk 0:00:53.5]} 18.
Rf1 {[%clk 0:02:32.2]} 18... h6 {[%clk 0:00:44.9]} 19. Be5 {[%clk 0:02:31.1]}
19... Ng4 {[%clk 0:00:22.8]} 20. Bc3 {[%clk 0:02:24.4]} 20... Rcd8 {[%clk
0:00:11.7]} 21. Qf3 {[%clk 0:02:22.7]} 21... f5 {[%clk 0:00:06.4]} 22. h3 {[%clk
0:02:18.6]} 22... Nf6 {[%clk 0:00:02.8]} 23. Rfe1 {[%clk 0:02:18.6]} 23... Qf7
{[%clk 0:00:02.4]} 24. Re5 {[%clk 0:02:05.6]} 24... Bb6 {[%clk 0:00:02.1]} 25.
a4 {[%clk 0:02:02.8]} 25... bxa4 {[%clk 0:00:02.1]} 26. Qe2 {[%clk 0:02:00.9]}
26... Rc8 {[%clk 0:00:01.9]} 27. Qxa6 {[%clk 0:01:59.5]} 27... Bc5 {[%clk
0:00:01.6]} 28. Rxe6 {[%clk 0:01:59.3]} 28... Rxe6 {[%clk 0:00:01.7]} 29. Qxe6
{[%clk 0:01:59.7]} 29... Qxe6 {[%clk 0:00:02.2]} 30. Rxe6 {[%clk 0:02:00.3]}
30... a3 {[%clk 0:00:02.4]} 31. bxa3 {[%clk 0:01:57.1]} 31... Bxf2+ {[%clk
0:00:02]} 32. Kxf2 {[%clk 0:01:54.6]} 32... Rxc3 {[%clk 0:00:02.9]} 33. a4
{[%clk 0:01:52.9]} 33... Rxc2+ {[%clk 0:00:02.8]} 34. Re2 {[%clk 0:01:52.9]}
34... Rc4 {[%clk 0:00:02.7]} 35. Ra2 {[%clk 0:01:52.6]} 35... Ne4+ {[%clk
0:00:02.6]} 36. Ke3 {[%clk 0:01:49.2]} 36... Rc3+ {[%clk 0:00:02.5]} 37. Kf4
{[%clk 0:01:47]} 37... Nxg3 {[%clk 0:00:03.1]} 38. a5 {[%clk 0:01:45.3]} 38...
g5+ {[%clk 0:00:03.6]} 39. Ke5 {[%clk 0:01:44.8]} 39... Rc5+ {[%clk 0:00:02]}
40. Kd6 {[%clk 0:01:43.6]} 40... Rc8 {[%clk 0:00:02.2]} 41. a6 {[%clk
0:01:43.2]} 41... Ne4+ {[%clk 0:00:01.8]} 42. Ke5 {[%clk 0:01:32]} 42... Nc5
{[%clk 0:00:01.8]} 43. a7 {[%clk 0:01:29.9]} 43... f4 {[%clk 0:00:02]} 44. a8=Q
{[%clk 0:01:28.1]} 44... Rxa8 {[%clk 0:00:02.6]} 45. Rxa8+ {[%clk 0:01:27.2]}
45... Kg7 {[%clk 0:00:03.5]} 46. Ra7+ {[%clk 0:01:27.3]} 46... Kg6 {[%clk
0:00:03.8]} 47. Be4+ {[%clk 0:01:27.9]} 47... Kh5 {[%clk 0:00:03.5]} 48. Rh7
{[%clk 0:01:26.3]} 48... Nb3 {[%clk 0:00:01.4]} 49. Bf3+ {[%clk 0:01:22.8]}
49... Kh4 {[%clk 0:00:01.7]} 50. Rxh6+ {[%clk 0:01:22.6]} 50... Kg3 {[%clk
0:00:02.6]} 51. Bg4 {[%clk 0:01:21.9]} 51... f3 {[%clk 0:00:02.6]} 52. Rf6
{[%clk 0:01:21.8]} 52... f2 {[%clk 0:00:02.7]} 53. Be2 {[%clk 0:01:15.9]} 53...
Nd2 {[%clk 0:00:02.3]} 54. Rf5 {[%clk 0:01:12.9]} 54... Kxh3 {[%clk 0:00:02.1]}
55. Rxf2 {[%clk 0:01:12.1]} 55... Kg3 {[%clk 0:00:02]} 56. Rf5 {[%clk
0:01:12.2]} 56... g4 {[%clk 0:00:02.4]} 57. Rf4 {[%clk 0:01:11]} 57... Nf3+
{[%clk 0:00:02.8]} 58. Bxf3 {[%clk 0:01:08.4]} 58... gxf3 {[%clk 0:00:03.7]} 59.
Ke4 {[%clk 0:01:08.5]} 59... f2 {[%clk 0:00:03.2]} 60. Ke3 {[%clk 0:01:08.8]}
1-0

[Event "Early-Titled-Tuesday-Blitz-September-05-2023"]
[Site "Chess.com"]
[Date "2023.09.05"]
[Round "6"]
[White "MasterKroket"]
[Black "Aanna12"]
[Result "1/2-1/2"]
[WhiteElo "2403"]
[BlackElo "2043"]
[TimeControl "180+1"]
[EndTime "9:05:55 PDT"]
[Termination "Game drawn by repetition"]

1. e4 {[%clk 0:02:59.4]} 1... c5 {[%clk 0:02:58.7]} 2. Nf3 {[%clk 0:02:59.3]}
2... d6 {[%clk 0:02:58.8]} 3. d4 {[%clk 0:02:59.7]} 3... cxd4 {[%clk 0:02:59.1]}
4. Nxd4 {[%clk 0:03:00.6]} 4... Nf6 {[%clk 0:02:58]} 5. Nc3 {[%clk 0:03:00.9]}
5... a6 {[%clk 0:02:58.3]} 6. Be3 {[%clk 0:03:00.5]} 6... e5 {[%clk 0:02:57.4]}
7. Nb3 {[%clk 0:03:00.7]} 7... Be7 {[%clk 0:02:57.5]} 8. f3 {[%clk 0:03:00.7]}
8... Be6 {[%clk 0:02:57.1]} 9. Qd2 {[%clk 0:03:01]} 9... h5 {[%clk 0:02:57.4]}
10. O-O-O {[%clk 0:03:01]} 10... Nbd7 {[%clk 0:02:57.9]} 11. Nd5 {[%clk
0:03:01]} 11... Nxd5 {[%clk 0:02:55.2]} 12. exd5 {[%clk 0:03:00.9]} 12... Bf5
{[%clk 0:02:55.4]} 13. Bd3 {[%clk 0:03:00]} 13... Bxd3 {[%clk 0:02:55.1]} 14.
Qxd3 {[%clk 0:03:00.8]} 14... Bg5 {[%clk 0:02:52.2]} 15. Kb1 {[%clk 0:03:00.7]}
15... Bxe3 {[%clk 0:02:44.6]} 16. Qxe3 {[%clk 0:03:00.9]} 16... O-O {[%clk
0:02:44.8]} 17. c4 {[%clk 0:03:00.2]} 17... b5 {[%clk 0:02:36.7]} 18. c5 {[%clk
0:02:58.6]} 18... dxc5 {[%clk 0:02:34.3]} 19. Nxc5 {[%clk 0:02:58.9]} 19... Nxc5
{[%clk 0:02:33.5]} 20. Qxc5 {[%clk 0:02:59.8]} 20... Rc8 {[%clk 0:02:33.7]} 21.
Qe3 {[%clk 0:02:57.9]} 21... Qd6 {[%clk 0:02:31]} 22. Rd2 {[%clk 0:02:54.4]}
22... Rc4 {[%clk 0:02:28.8]} 23. Rhd1 {[%clk 0:02:54.5]} 23... Rfc8 {[%clk
0:02:28.1]} 24. Qg5 {[%clk 0:02:43.2]} 24... g6 {[%clk 0:02:26.6]} 25. g4 {[%clk
0:02:36.6]} 25... hxg4 {[%clk 0:02:25]} 26. fxg4 {[%clk 0:02:37.5]} 26... a5
{[%clk 0:02:08.2]} 27. Re2 {[%clk 0:02:26.7]} 27... Re8 {[%clk 0:01:38.5]} 28.
h4 {[%clk 0:02:24.6]} 28... a4 {[%clk 0:01:35.9]} 29. h5 {[%clk 0:02:21.9]}
29... a3 {[%clk 0:01:36.1]} 30. hxg6 {[%clk 0:02:14.7]} 30... fxg6 {[%clk
0:01:35]} 31. Rf1 {[%clk 0:02:09.5]} 31... axb2 {[%clk 0:01:30.4]} 32. Rxb2
{[%clk 0:02:00.5]} 32... Rf4 {[%clk 0:01:20]} 33. Rc1 {[%clk 0:01:54.2]} 33...
Qf6 {[%clk 0:01:06.5]} 34. Qxf6 {[%clk 0:01:52.6]} 34... Rxf6 {[%clk 0:01:06.6]}
35. Rxb5 {[%clk 0:01:53]} 35... e4 {[%clk 0:01:05.9]} 36. Re1 {[%clk 0:01:44.8]}
36... e3 {[%clk 0:01:03.3]} 37. Kc2 {[%clk 0:01:42.8]} 37... Rf2+ {[%clk
0:01:00.9]} 38. Kd3 {[%clk 0:01:42.7]} 38... Rxa2 {[%clk 0:01:00]} 39. Re2
{[%clk 0:01:30.9]} 39... Ra3+ {[%clk 0:00:55.5]} 40. Kd4 {[%clk 0:01:31]} 40...
Ra4+ {[%clk 0:00:55.3]} 41. Kc5 {[%clk 0:01:31.6]} 41... Rxg4 {[%clk 0:00:53.6]}
42. Rb3 {[%clk 0:01:31]} 42... Rge4 {[%clk 0:00:50.5]} 43. d6 {[%clk 0:01:30.8]}
43... Kf7 {[%clk 0:00:41.6]} 44. Kc6 {[%clk 0:01:17.9]} 44... R8e6 {[%clk
0:00:26]} 45. Kd7 {[%clk 0:01:16.4]} 45... R6e5 {[%clk 0:00:20.7]} 46. Rb1
{[%clk 0:01:11.4]} 46... Rd5 {[%clk 0:00:19.2]} 47. Rf1+ {[%clk 0:01:08.9]}
47... Kg7 {[%clk 0:00:18.8]} 48. Rf3 {[%clk 0:00:50.8]} 48... Red4 {[%clk
0:00:18.5]} 49. Rfxe3 {[%clk 0:00:50.6]} 49... Rxd6+ {[%clk 0:00:18.6]} 50. Ke7
{[%clk 0:00:50.8]} 50... Rd7+ {[%clk 0:00:17.4]} 51. Ke6 {[%clk 0:00:50.9]}
51... R7d6+ {[%clk 0:00:17.4]} 52. Ke5 {[%clk 0:00:51.2]} 52... R6d5+ {[%clk
0:00:17.3]} 53. Ke6 {[%clk 0:00:51.4]} 53... Rd6+ {[%clk 0:00:17.6]} 54. Ke5
{[%clk 0:00:51.9]} 54... R6d5+ {[%clk 0:00:17.9]} 55. Ke6 {[%clk 0:00:52.4]}
55... Rd6+ {[%clk 0:00:18.2]} 1/2-1/2

[Event "Early-Titled-Tuesday-Blitz-September-05-2023"]
[Site "Chess.com"]
[Date "2023.09.05"]
[Round "6"]
[White "twofoxniel"]
[Black "vishwa_vijeta"]
[Result "1-0"]
[WhiteElo "2664"]
[BlackElo "2521"]
[TimeControl "180+1"]
[EndTime "9:05:56 PDT"]
[Termination "twofoxniel won by checkmate"]

1. e4 {[%clk 0:03:00.9]} 1... c5 {[%clk 0:02:58.2]} 2. c3 {[%clk 0:03:00.7]}
2... d5 {[%clk 0:02:55.4]} 3. exd5 {[%clk 0:03:00.7]} 3... Qxd5 {[%clk
0:02:56.3]} 4. d4 {[%clk 0:03:01.6]} 4... Nc6 {[%clk 0:02:55.9]} 5. Nf3 {[%clk
0:03:01.5]} 5... Bf5 {[%clk 0:02:55.6]} 6. Be3 {[%clk 0:02:50.3]} 6... Nf6
{[%clk 0:02:45.4]} 7. Be2 {[%clk 0:02:38.1]} 7... Bxb1 {[%clk 0:02:43.7]} 8.
Rxb1 {[%clk 0:02:32.5]} 8... cxd4 {[%clk 0:02:43.4]} 9. Nxd4 {[%clk 0:02:32.8]}
9... Nxd4 {[%clk 0:02:16.4]} 10. Bxd4 {[%clk 0:02:32.8]} 10... e6 {[%clk
0:02:09.7]} 11. Bf3 {[%clk 0:02:27.1]} 11... Qd7 {[%clk 0:02:07.3]} 12. Qb3
{[%clk 0:02:17.8]} 12... Nd5 {[%clk 0:01:59.4]} 13. O-O {[%clk 0:02:17.6]} 13...
O-O-O {[%clk 0:01:57]} 14. Bxa7 {[%clk 0:02:13.7]} 14... Bd6 {[%clk 0:01:53.2]}
15. Ra1 {[%clk 0:02:02.7]} 15... Qc7 {[%clk 0:01:45.4]} 16. g3 {[%clk
0:01:53.6]} 16... b6 {[%clk 0:01:42.4]} 17. Bxd5 {[%clk 0:01:51.2]} 17... Qxa7
{[%clk 0:01:42.3]} 18. Bg2 {[%clk 0:01:49.6]} 18... Qc7 {[%clk 0:01:42.5]} 19.
a4 {[%clk 0:01:49]} 19... Kd7 {[%clk 0:01:38.4]} 20. a5 {[%clk 0:01:34.9]} 20...
bxa5 {[%clk 0:01:35.8]} 21. Qb5+ {[%clk 0:01:35.1]} 21... Ke7 {[%clk 0:01:34.6]}
22. Rxa5 {[%clk 0:01:35.4]} 22... Rb8 {[%clk 0:01:33.4]} 23. Qa4 {[%clk
0:01:36]} 23... Bc5 {[%clk 0:01:26.5]} 24. b4 {[%clk 0:01:28.1]} 24... Bb6
{[%clk 0:01:26.5]} 25. Ra6 {[%clk 0:01:26.4]} 25... Rhd8 {[%clk 0:01:20.6]} 26.
c4 {[%clk 0:01:22.3]} 26... Bd4 {[%clk 0:01:11.3]} 27. c5 {[%clk 0:01:19.3]}
27... Qe5 {[%clk 0:01:06.8]} 28. c6 {[%clk 0:01:00.3]} 28... Qc7 {[%clk
0:00:51.6]} 29. b5 {[%clk 0:01:00.2]} 29... Bb6 {[%clk 0:00:51.4]} 30. Qe4
{[%clk 0:00:56.7]} 30... g6 {[%clk 0:00:48.3]} 31. Qh4+ {[%clk 0:00:56.9]} 31...
Kf8 {[%clk 0:00:47.2]} 32. Qxh7 {[%clk 0:00:57.1]} 32... Bd4 {[%clk 0:00:47.2]}
33. Qh6+ {[%clk 0:00:52.2]} 33... Kg8 {[%clk 0:00:41.2]} 34. Qg5 {[%clk
0:00:49.9]} 34... Bb6 {[%clk 0:00:35.4]} 35. h4 {[%clk 0:00:49.2]} 35... Bd4
{[%clk 0:00:22.6]} 36. h5 {[%clk 0:00:48]} 36... Kg7 {[%clk 0:00:22.9]} 37. hxg6
{[%clk 0:00:48.1]} 37... fxg6 {[%clk 0:00:23.8]} 38. Be4 {[%clk 0:00:45]} 38...
Qf7 {[%clk 0:00:19.6]} 39. c7 {[%clk 0:00:43.5]} 39... Qxc7 {[%clk 0:00:19.4]}
40. Qxg6+ {[%clk 0:00:43.8]} 40... Kf8 {[%clk 0:00:20.1]} 41. Rxe6 {[%clk
0:00:42.4]} 41... Rd7 {[%clk 0:00:18.9]} 42. Bc6 {[%clk 0:00:42.2]} 42... Rg7
{[%clk 0:00:18.2]} 43. Re8+ {[%clk 0:00:42.5]} 43... Rxe8 {[%clk 0:00:12.3]} 44.
Qxe8# {[%clk 0:00:43.4]} 1-0

[Event "Early-Titled-Tuesday-Blitz-September-05-2023"]
[Site "Chess.com"]
[Date "2023.09.05"]
[Round "6"]
[White "Vaibhavraut99"]
[Black "bascheyaro"]
[Result "0-1"]
[WhiteElo "2573"]
[BlackElo "2809"]
[TimeControl "180+1"]
[EndTime "9:05:57 PDT"]
[Termination "bascheyaro won on time"]

1. Nf3 {[%clk 0:03:00.9]} 1... d5 {[%clk 0:03:00.1]} 2. e3 {[%clk 0:02:58.4]}
2... Nf6 {[%clk 0:03:00]} 3. Be2 {[%clk 0:01:33.7]} 3... c5 {[%clk 0:02:45.6]}
4. b3 {[%clk 0:01:33.6]} 4... Nc6 {[%clk 0:02:45.7]} 5. Bb2 {[%clk 0:01:34]}
5... Bf5 {[%clk 0:02:45.6]} 6. O-O {[%clk 0:01:34.1]} 6... e6 {[%clk 0:02:46.1]}
7. d4 {[%clk 0:01:33.8]} 7... Rc8 {[%clk 0:02:44.9]} 8. c4 {[%clk 0:01:32.5]}
8... dxc4 {[%clk 0:02:44.3]} 9. Bxc4 {[%clk 0:01:32.8]} 9... a6 {[%clk
0:02:41.5]} 10. a4 {[%clk 0:01:27.1]} 10... cxd4 {[%clk 0:02:36]} 11. Nxd4
{[%clk 0:01:25.3]} 11... Nxd4 {[%clk 0:02:36.1]} 12. Qxd4 {[%clk 0:01:23]} 12...
Qxd4 {[%clk 0:02:32.6]} 13. Bxd4 {[%clk 0:01:23.9]} 13... Bb4 {[%clk 0:02:31.1]}
14. Nc3 {[%clk 0:01:14.7]} 14... O-O {[%clk 0:02:29.2]} 15. Na2 {[%clk
0:01:12.7]} 15... Be7 {[%clk 0:02:26.6]} 16. f3 {[%clk 0:01:09.1]} 16... Bg6
{[%clk 0:01:55.3]} 17. Rfd1 {[%clk 0:01:01.7]} 17... Rfd8 {[%clk 0:01:54.7]} 18.
Kf1 {[%clk 0:00:54.9]} 18... Nd5 {[%clk 0:01:52.9]} 19. Bxd5 {[%clk 0:00:52.9]}
19... Rxd5 {[%clk 0:01:52.6]} 20. Rac1 {[%clk 0:00:53.5]} 20... Rdd8 {[%clk
0:01:50.5]} 21. Rxc8 {[%clk 0:00:41]} 21... Rxc8 {[%clk 0:01:50.9]} 22. Bc3
{[%clk 0:00:39.9]} 22... Bc2 {[%clk 0:01:49]} 23. Rd7 {[%clk 0:00:37.4]} 23...
Bxb3 {[%clk 0:01:34.4]} 24. Rxe7 {[%clk 0:00:35.6]} 24... Bxa2 {[%clk
0:01:34.7]} 25. Rxb7 {[%clk 0:00:36]} 25... f6 {[%clk 0:01:33.2]} 26. Bd4 {[%clk
0:00:27.1]} 26... e5 {[%clk 0:01:32]} 27. Bb6 {[%clk 0:00:24.4]} 27... Rc1+
{[%clk 0:01:22.6]} 28. Kf2 {[%clk 0:00:24.6]} 28... Rc2+ {[%clk 0:01:20.5]} 29.
Kg3 {[%clk 0:00:24.7]} 29... h5 {[%clk 0:01:18.1]} 30. h4 {[%clk 0:00:24.5]}
30... Rb2 {[%clk 0:01:15.7]} 31. a5 {[%clk 0:00:22.8]} 31... Bc4 {[%clk
0:01:15.1]} 32. Rb8+ {[%clk 0:00:18.6]} 32... Kf7 {[%clk 0:01:14.7]} 33. Rb7+
{[%clk 0:00:08.4]} 33... Kg6 {[%clk 0:01:14.3]} 34. f4 {[%clk 0:00:03.6]} 34...
Bd5 {[%clk 0:01:13]} 35. Rd7 {[%clk 0:00:01.6]} 35... Rxg2+ {[%clk 0:00:57.1]}
36. Kh3 {[%clk 0:00:02.1]} 36... Rd2 {[%clk 0:00:57.2]} 37. f5+ {[%clk
0:00:02.1]} 37... Kxf5 {[%clk 0:00:57.2]} 38. Rxg7 {[%clk 0:00:02.7]} 38... Ke4
{[%clk 0:00:52.7]} 39. Rg1 {[%clk 0:00:02.9]} 39... f5 {[%clk 0:00:50.7]} 40.
Rg5 {[%clk 0:00:02.5]} 40... Be6 {[%clk 0:00:49]} 41. Rxh5 {[%clk 0:00:02.4]}
41... f4+ {[%clk 0:00:49.4]} 0-1